fUST/lending_fUST_20250227
["ID","MTS","AMOUNT","RATE_DAILY","PERIOD"]
[354690433,1740621039045,-503.64136148,0.00046575,120]
[354690434,1740621039054,-502.56905033,0.00046575,120]
[354690435,1740621039063,-509.92408668,0.00046575,120]
[354690436,1740621039072,-500.0,0.00046575,120]
[354690437,1740621039081,-501.92576196,0.00046575,120]
[354690438,1740621039091,-798.33,0.00046575,120]
[354690439,1740621039100,-503.15114239,0.00046575,120]
[354690440,1740621039110,-502.60066418,0.00046575,10]
[354690441,1740621039120,-503.40637129,0.00046575,120]
[354690442,1740621039131,-500.94789615,0.00046575,120]
[354690443,1740621039141,-500.0,0.00046575,120]
[354690444,1740621039151,-500.74719916,0.00046575,120]
[354690445,1740621039160,-250.0,0.00046575,120]
[354690446,1740621039169,-500.0,0.00046575,120]
[354690447,1740621039179,-535.07,0.00046575,120]
[354690448,1740621039188,-500.92496927,0.00046575,120]
[354690449,1740621039197,-744.25,0.00046575,120]
[354690450,1740621039207,-500.0,0.00046575,120]
[354690451,1740621039399,-500.0,0.00046575,120]
[354690452,1740621039410,-500.0,0.00046575,120]
[354690453,1740621039420,-501.40887813,0.00046575,120]
[354690454,1740621039431,-500.0,0.00046575,120]
[354690455,1740621039440,-500.0,0.00046575,120]
[354690456,1740621039451,-500.0,0.00046575,120]
[354690457,1740621039461,-500.0,0.00046575,120]
[354690458,1740621039473,-502.68512929,0.00046575,120]
[354690459,1740621039483,-503.35395704,0.00046575,120]
[354690460,1740621039491,-500.0,0.00046575,120]
[354690461,1740621039503,-500.0,0.00046575,120]
[354690462,1740621039513,-500.0,0.00046575,120]
[354690463,1740621039522,-501.30771542,0.00046575,120]
[354690464,1740621039532,-500.0,0.00046575,120]
[354690465,1740621039542,-500.0,0.00046575,120]
[354690466,1740621039551,-503.54416205,0.00046575,120]
[354690467,1740621039561,-500.0,0.00046575,120]
[354690468,1740621039570,-3012.64525013,0.00046575,120]
[354690469,1740621039580,-508.27569883,0.00046575,120]
[354690470,1740621039589,-501.1347877,0.00046575,120]
[354690471,1740621039599,-500.0,0.00046575,120]
[354690472,1740621039608,-635.95144965,0.00046575,120]
[354690473,1740621039617,-504.19382585,0.00046575,120]
[354690474,1740621039627,-731.01,0.00046575,120]
[354690475,1740621039636,-505.41657605,0.00046575,120]
[354690476,1740621039645,-500.0,0.00046575,120]
[354690477,1740621039655,-763.78,0.00046575,120]
[354690478,1740621039664,-500.0,0.00046575,120]
[354690479,1740621039674,-503.46553787,0.00046575,120]
[354690480,1740621039684,-500.0,0.00046575,120]
[354690482,1740621039694,-500.0,0.00046575,120]
[354690484,1740621039718,-501.22037166,0.00046575,120]
[354690485,1740621039728,-583.25042195,0.00046575,120]
[354690486,1740621039738,-500.0,0.00046575,120]
[354690487,1740621039748,-315.90507798,0.00046575,120]
[354690488,1740621039759,-347.26724994,0.00046575,120]
[354690489,1740621039769,-500.0,0.00046575,120]
[354690490,1740621039779,-500.0,0.00046575,120]
[354690491,1740621039790,-787.87,0.00046575,120]
[354690492,1740621039800,-500.74166558,0.00046575,120]
[354690493,1740621039810,-500.0,0.00046575,120]
[354690494,1740621039821,-500.0,0.00046575,120]
[354690495,1740621039831,-500.0,0.00046575,120]
[354690496,1740621039841,-503.67643294,0.00046575,120]
[354690497,1740621039851,-503.66303612,0.00046575,120]
[354690498,1740621039861,-500.0,0.00046575,120]
[354690499,1740621039871,-299.44856454,0.00046575,120]
[354690501,1740621039882,-527.01,0.00046575,120]
[354690503,1740621039892,-500.0,0.00046575,120]
[354690505,1740621039902,-500.0,0.00046575,120]
[354690507,1740621039912,-500.0,0.00046575,120]
[354690509,1740621039922,-500.42067274,0.00046575,120]
[354690511,1740621039932,-506.67237556,0.00046575,120]
[354690513,1740621039941,-500.0,0.00046575,120]
[354690515,1740621039951,-513.51491327,0.00046575,120]
[354690518,1740621039966,-587.29344489,0.00046575,120]
[354690520,1740621039976,-530.45310454,0.00046575,120]
[354690522,1740621039986,-881.4,0.00046575,120]
[354690524,1740621039996,-500.0,0.00046575,120]
[354690526,1740621040006,-502.90997258,0.00046575,120]
[354690528,1740621040016,-500.74887117,0.00046575,120]
[354690530,1740621040026,-229.2173404,0.00046575,120]
[354690531,1740621040035,-500.0,0.00046575,120]
[354690532,1740621040046,-500.0,0.00046575,120]
[354690533,1740621040055,-500.0,0.00046575,120]
[354690534,1740621040065,-500.0,0.00046575,120]
[354690535,1740621040075,-504.14485049,0.00046575,120]
[354690536,1740621040085,-504.62264338,0.00046575,120]
[354690537,1740621040094,-500.0,0.00046575,120]
[354690538,1740621040104,-500.0,0.00046575,120]
[354690539,1740621040114,-500.0,0.00046575,120]
[354690540,1740621040124,-502.37414069,0.00046575,120]
[354690541,1740621040134,-500.0,0.00046575,120]
[354690542,1740621040145,-500.0,0.00046575,120]
[354690543,1740621040155,-502.95214945,0.00046575,120]
[354690544,1740621040165,-500.0,0.00046575,120]
[354690545,1740621040175,-500.0,0.00046575,120]
[354690546,1740621040185,-500.0,0.00046575,120]
[354690547,1740621040196,-500.0,0.00046575,120]
[354690548,1740621040209,-508.42206857,0.00046575,120]
[354690549,1740621040219,-504.02099495,0.00046575,120]
[354690550,1740621040229,-866.64,0.00046575,120]
[354690551,1740621040238,-505.12768917,0.00046575,120]
[354690552,1740621040248,-500.0,0.00046575,120]
[354690553,1740621040257,-653.32,0.00046575,120]
[354690554,1740621040267,-501.76688793,0.00046575,120]
[354690555,1740621040277,-530.74206459,0.00046575,120]
[354690556,1740621040287,-1729.45,0.00046575,120]
[354690557,1740621040297,-508.69,0.00046575,120]
[354690558,1740621040306,-503.32408164,0.00046575,120]
[354690559,1740621040317,-500.0,0.00046575,120]
[354690560,1740621040327,-500.0,0.00046575,120]
[354690561,1740621040336,-500.0,0.00046575,120]
[354690562,1740621040346,-890.09,0.00046575,120]
[354690563,1740621040356,-500.0,0.00046575,120]
[354690564,1740621040366,-502.80261941,0.00046575,120]
[354690565,1740621040376,-500.0,0.00046575,120]
[354690566,1740621040386,-712.38,0.00046575,120]
[354690567,1740621040396,-504.32170878,0.00046575,120]
[354690568,1740621040406,-560.17,0.00046575,120]
[354690569,1740621040416,-504.31156791,0.00046575,120]
[354690570,1740621040427,-796.64,0.00046575,120]
[354690571,1740621040437,-503.20457225,0.00046575,120]
[354690572,1740621040448,-502.4792703,0.00046575,120]
[354690573,1740621040461,-825.17,0.00046575,120]
[354690574,1740621040471,-501.44362187,0.00046575,120]
[354690575,1740621040480,-503.50451892,0.00046575,120]
[354690576,1740621040490,-502.14896578,0.00046575,120]
[354690577,1740621040500,-795.99,0.00046575,120]
[354690578,1740621040510,-500.0,0.00046575,120]
[354690579,1740621040520,-500.0,0.00046575,120]
[354690580,1740621040530,-151.0,0.00046575,120]
[354690581,1740621040540,-151.0,0.00046575,120]
[354690582,1740621040550,-265.88675,0.00046575,120]
[354690583,1740621040560,-789.5,0.00046575,120]
[354690584,1740621040570,-742.43,0.00046575,120]
[354690585,1740621040579,-265.88675,0.00046575,120]
[354690586,1740621040589,-506.48147175,0.00046575,120]
[354690587,1740621040599,-151.0,0.00046575,120]
[354690588,1740621040608,-151.0,0.00046575,120]
[354690589,1740621040617,-265.88675,0.00046575,120]
[354690590,1740621040627,-505.43635356,0.00046575,120]
[354690591,1740621040637,-265.88675,0.00046575,120]
[354690592,1740621040646,-500.0,0.00046575,120]
[354690593,1740621040656,-500.0,0.00046575,120]
[354690594,1740621040666,-807.05,0.00046575,120]
[354690595,1740621040675,-751.95,0.00046575,120]
[354690596,1740621040686,-2621.94,0.00046575,120]
[354690597,1740621040697,-501.44755329,0.00046575,120]
[354690598,1740621040707,-500.0,0.00046575,120]
[354690599,1740621040716,-502.91868034,0.00046575,120]
[354690600,1740621040725,-500.0,0.00046575,120]
[354690601,1740621040735,-500.0,0.00046575,120]
[354690602,1740621040744,-501.26324765,0.00046575,2]
[354690603,1740621040753,-659.92,0.00046575,120]
[354690604,1740621040763,-502.34782471,0.00046575,120]
[354690605,1740621040772,-500.0,0.00046575,120]
[354690606,1740621040785,-1728.63,0.00046575,120]
[354690607,1740621040795,-500.0,0.00046575,120]
[354690608,1740621040804,-503.31092005,0.00046575,120]
[354690609,1740621040813,-500.0,0.00046575,120]
[354690610,1740621040823,-501.81905197,0.00046575,120]
[354690611,1740621040833,-500.0,0.00046575,120]
[354690612,1740621040842,-506.00699042,0.00046575,120]
[354690613,1740621040851,-1301.42,0.00046575,120]
[354690614,1740621040861,-500.0,0.00046575,120]
[354690615,1740621040871,-500.0,0.00046575,120]
[354690616,1740621040880,-500.0,0.00046575,120]
[354690617,1740621040890,-503.71902259,0.00046575,120]
[354690618,1740621040899,-500.0,0.00046575,120]
[354690619,1740621040909,-500.0,0.00046575,120]
[354690620,1740621040918,-502.74175473,0.00046575,120]
[354690621,1740621040929,-738.77,0.00046575,120]
[354690622,1740621040939,-151.0,0.00046575,120]
[354690623,1740621040948,-404.64009893,0.00046575,120]
[354690624,1740621040959,-151.0,0.00046575,120]
[354690625,1740621040968,-704.31,0.00046575,120]
[354690626,1740621040978,-1890.29,0.00046575,120]
[354690627,1740621040987,-500.0,0.00046575,120]
[354690628,1740621040998,-500.0,0.00046575,120]
[354690629,1740621041009,-502.05471112,0.00046575,120]
[354690630,1740621041020,-151.0,0.00046575,120]
[354690631,1740621041031,-151.0,0.00046575,120]
[354690632,1740621041042,-500.0,0.00046575,120]
[354690633,1740621041052,-500.0,0.00046575,120]
[354690634,1740621041062,-501.18635219,0.00046575,120]
[354690635,1740621041071,-500.0,0.00046575,120]
[354690636,1740621041082,-500.0,0.00046575,20]
[354690637,1740621041091,-500.0,0.00046575,20]
[354690638,1740621041101,-500.0,0.00046575,20]
[354690639,1740621041110,-504.24453056,0.00046575,120]
[354690640,1740621041119,-500.0,0.00046575,20]
[354690641,1740621041128,-500.0,0.00046575,20]
[354690642,1740621041138,-500.0,0.00046575,20]
[354690643,1740621041147,-500.0,0.00046575,20]
[354690644,1740621041157,-500.0,0.00046575,20]
[354690645,1740621041166,-500.0,0.00046575,20]
[354690646,1740621041175,-500.0,0.00046575,20]
[354690647,1740621041185,-584.44,0.00046575,120]
[354690648,1740621041195,-500.0,0.00046575,20]
[354690649,1740621041204,-500.0,0.00046575,120]
[354690650,1740621041215,-500.0,0.00046575,20]
[354690651,1740621041225,-363.15110153,0.00046575,20]
[354690652,1740621041234,-500.0,0.00046575,120]
[354690653,1740621041243,-500.0,0.00046575,120]
[354690654,1740621041252,-504.70295135,0.00046575,120]
[354690655,1740621041262,-500.85229893,0.00046575,120]
[354690656,1740621041271,-500.0,0.00046575,120]
[354690657,1740621041281,-500.0,0.00046575,120]
[354690658,1740621041291,-500.0,0.00046575,120]
[354690659,1740621041301,-500.0,0.00046575,120]
[354690660,1740621041311,-500.0,0.00046575,120]
[354690661,1740621041320,-500.0,0.00046575,120]
[354690662,1740621041330,-500.0,0.00046575,120]
[354690663,1740621041340,-500.0,0.00046575,120]
[354690664,1740621041349,-2877.3,0.00046575,120]
[354690665,1740621041359,-500.0,0.00046575,120]
[354690666,1740621041368,-500.0,0.00046575,120]
[354690667,1740621041378,-500.0,0.00046575,120]
[354690668,1740621041388,-500.0,0.00046575,120]
[354690669,1740621041398,-500.0,0.00046575,120]
[354690670,1740621041407,-511.77018179,0.00046575,120]
[354690671,1740621041416,-500.0,0.00046575,120]
[354690672,1740621041427,-502.06964756,0.00046575,120]
[354690673,1740621041438,-505.79425313,0.00046575,120]
[354690674,1740621041448,-500.0,0.00046575,120]
[354690675,1740621041458,-500.0,0.00046575,120]
[354690676,1740621041469,-931.04,0.00046575,120]
[354690677,1740621041478,-502.17589947,0.00046575,120]
[354690678,1740621041487,-500.0,0.00046575,120]
[354690679,1740621041500,-501.05924142,0.00046575,120]
[354690680,1740621041510,-500.0,0.00046575,120]
[354690681,1740621041519,-500.0,0.00046575,120]
[354690682,1740621041528,-500.0,0.00046575,120]
[354690683,1740621041538,-500.76596082,0.00046575,120]
[354690684,1740621041548,-501.84702457,0.00046575,120]
[354690685,1740621041557,-503.50176052,0.00046575,120]
[354690686,1740621041567,-500.0,0.00046575,120]
[354690687,1740621041576,-505.44935132,0.00046575,120]
[354690688,1740621041586,-2284.95,0.00046575,120]
[354690689,1740621041596,-500.0,0.00046575,120]
[354690690,1740621041605,-557.04,0.00046575,120]
[354690691,1740621041615,-502.46135653,0.00046575,120]
[354690692,1740621041624,-1337.46,0.00046575,120]
[354690693,1740621041634,-500.0,0.00046575,30]
[354690694,1740621041644,-500.0,0.00046575,120]
[354690695,1740621041653,-2537.17,0.00046575,120]
[354690696,1740621041663,-500.0,0.00046575,120]
[354690697,1740621041672,-500.0,0.00046575,120]
[354690698,1740621041682,-500.0,0.00046575,120]
[354690699,1740621041691,-500.0,0.00046575,120]
[354690700,1740621041701,-501.61045468,0.00046575,120]
[354690701,1740621041711,-500.0,0.00046575,120]
[354690702,1740621041721,-500.0,0.00046575,120]
[354690703,1740621041730,-500.0,0.00046575,120]
[354690704,1740621041739,-500.92380688,0.00046575,120]
[354690705,1740621041749,-500.0,0.00046575,120]
[354690706,1740621041759,-500.0,0.00046575,120]
[354690707,1740621041768,-500.0,0.00046575,120]
[354690708,1740621041778,-500.0,0.00046575,120]
[354690709,1740621041787,-500.0,0.00046575,120]
[354690710,1740621041797,-500.0,0.00046575,120]
[354690711,1740621041806,-500.0,0.00046575,120]
[354690712,1740621041816,-500.0,0.00046575,120]
[354690713,1740621041826,-500.0,0.00046575,120]
[354690714,1740621041836,-500.0,0.00046575,120]
[354690715,1740621041845,-647.7896035,0.00046575,120]
[354690716,1740621041855,-300.0,0.00046575,120]
[354690717,1740621041864,-563.42,0.00046575,120]
[354690718,1740621041873,-502.49597519,0.00046575,120]
[354690719,1740621041883,-500.0,0.00046575,120]
[354690720,1740621041893,-2582.09,0.00046575,120]
[354690721,1740621041903,-501.58532896,0.00046575,120]
[354690722,1740621041912,-500.0,0.00046575,120]
[354690723,1740621042070,-500.0,0.00046575,120]
[354690724,1740621042080,-500.0,0.00046575,120]
[354690725,1740621042089,-500.0,0.00046575,120]
[354690726,1740621042098,-563.3,0.00046575,120]
[354690727,1740621042107,-316.12823491,0.00046575,120]
[354690728,1740621042117,-1556.03,0.00046575,120]
[354690729,1740621042126,-500.0,0.00046575,120]
[354690730,1740621042135,-500.0,0.00046575,120]
[354690731,1740621042145,-500.0,0.00046575,120]
[354690732,1740621042154,-1318.81,0.00046575,120]
[354690733,1740621042163,-504.03539046,0.00046575,120]
[354690734,1740621042172,-500.0,0.00046575,120]
[354690735,1740621042182,-674.17,0.00046575,120]
[354690736,1740621042191,-1411.92,0.00046575,120]
[354690737,1740621042200,-504.16474357,0.00046575,120]
[354690738,1740621042211,-500.58181343,0.00046575,120]
[354690739,1740621042221,-500.0,0.00046575,120]
[354690740,1740621042230,-784.49,0.00046575,120]
[354690741,1740621042240,-500.0,0.00046575,120]
[354690742,1740621042249,-500.0,0.00046575,120]
[354690743,1740621042258,-611.75,0.00046575,120]
[354690744,1740621042268,-1783.53,0.00046575,120]
[354690745,1740621042277,-500.0,0.00046575,120]
[354690746,1740621042286,-500.0,0.00046575,120]
[354690747,1740621042296,-682.76,0.00046575,120]
[354690748,1740621042305,-502.80616347,0.00046575,120]
[354690749,1740621042314,-151.0,0.00046575,120]
[354690750,1740621042324,-151.0,0.00046575,120]
[354690751,1740621042333,-1677.22,0.00046575,120]
[354690752,1740621042343,-627.68,0.00046575,120]
[354690753,1740621042352,-500.0,0.00046575,120]
[354690754,1740621042362,-500.0,0.00046575,120]
[354690755,1740621042371,-151.0,0.00046575,120]
[354690756,1740621042381,-151.0,0.00046575,120]
[354690757,1740621042391,-1004.51693906,0.00046575,120]
[354690758,1740621042400,-500.0,0.00046575,120]
[354690759,1740621042410,-502.4514035,0.00046575,120]
[354690760,1740621042422,-500.0,0.00046575,120]
[354690761,1740621042432,-500.0,0.00046575,120]
[354690762,1740621042441,-500.0,0.00046575,14]
[354690763,1740621042451,-608.91,0.00046575,120]
[354690764,1740621042461,-814.47,0.00046575,120]
[354690765,1740621042471,-1501.92,0.00046575,120]
[354690766,1740621042480,-3151.73,0.00046575,120]
[354690767,1740621042489,-1000.0,0.00046575,120]
[354690768,1740621042500,-500.0,0.00046575,120]
[354690769,1740621042509,-500.0,0.00046575,120]
[354690770,1740621042518,-500.0,0.00046575,120]
[354690771,1740621042528,-1474.57,0.00046575,120]
[354690772,1740621042537,-1002.93821054,0.00046575,120]
[354690773,1740621042547,-501.25903539,0.00046575,120]
[354690774,1740621042556,-151.0,0.00046575,120]
[354690775,1740621042566,-500.0,0.00046575,120]
[354690776,1740621042575,-500.0,0.00046575,120]
[354690777,1740621042584,-151.0,0.00046575,120]
[354690778,1740621042593,-500.0,0.00046575,120]
[354690779,1740621042603,-500.0,0.00046575,120]
[354690780,1740621042612,-500.0,0.00046575,30]
[354690781,1740621042622,-660.88,0.00046575,120]
[354690782,1740621042631,-500.0,0.00046575,120]
[354690783,1740621042640,-151.0,0.00046575,120]
[354690784,1740621042649,-151.0,0.00046575,120]
[354690785,1740621042658,-1430.54,0.00046575,120]
[354690786,1740621042668,-510.72690649,0.00046575,120]
[354690789,1740621042677,-582.05,0.00046575,120]
[354690792,1740621042686,-500.0,0.00046575,120]
[354690794,1740621042695,-151.0,0.00046575,120]
[354690796,1740621042704,-151.0,0.00046575,120]
[354690797,1740621042715,-356.26504,0.00046575,120]
[354690799,1740621042724,-1213.97,0.00046575,120]
[354690800,1740621042733,-500.0,0.00046575,120]
[354690801,1740621042743,-174.08542814,0.00046575,120]
[354690803,1740621042753,-501.43105469,0.00046575,120]
[354690805,1740621042762,-500.9159233,0.00046575,120]
[354690807,1740621042771,-501.97828169,0.00046575,120]
[354690810,1740621042780,-500.0,0.00046575,120]
[354690813,1740621042789,-500.0,0.00046575,120]
[354690816,1740621042799,-500.0,0.00046575,120]
[354690819,1740621042810,-500.0,0.00046575,120]
[354690821,1740621042819,-500.0,0.00046575,120]
[354690823,1740621042829,-500.0,0.00046575,120]
[354690825,1740621042838,-500.0,0.00046575,30]
[354690827,1740621042848,-500.0,0.00046575,120]
[354690829,1740621042857,-500.0,0.00046575,120]
[354690832,1740621042866,-918.71,0.00046575,120]
[354690834,1740621042875,-500.0,0.00046575,120]
[354690836,1740621042885,-500.0,0.00046575,120]
[354690838,1740621042894,-500.0,0.00046575,120]
[354690840,1740621042903,-500.0,0.00046575,120]
[354690841,1740621042913,-500.0,0.00046575,120]
[354690843,1740621042922,-500.0,0.00046575,120]
[354690845,1740621042931,-500.0,0.00046575,120]
[354690847,1740621042941,-500.0,0.00046575,120]
[354690850,1740621042950,-500.0,0.00046575,120]
[354690852,1740621042960,-500.0,0.00046575,120]
[354690854,1740621042970,-711.38,0.00046575,120]
[354690856,1740621042979,-287.08357056,0.00046575,120]
[354690858,1740621042988,-500.0,0.00046575,120]
[354690860,1740621042997,-500.0,0.00046575,120]
[354690862,1740621043006,-151.0,0.00046575,120]
[354690864,1740621043015,-151.0,0.00046575,120]
[354690866,1740621043024,-500.0,0.00046575,120]
[354690868,1740621043033,-500.0,0.00046575,120]
[354690869,1740621043043,-500.0,0.00046575,120]
[354690870,1740621043052,-1187.66,0.00046575,120]
[354690871,1740621043061,-501.48125541,0.00046575,120]
[354690872,1740621043070,-769.53,0.00046575,120]
[354690873,1740621043080,-501.40026869,0.00046575,120]
[354690874,1740621043089,-501.18407411,0.00046575,120]
[354690875,1740621043098,-2430.58,0.00046575,120]
[354690876,1740621043107,-500.0,0.00046575,120]
[354690877,1740621043116,-500.0,0.00046575,120]
[354690878,1740621043125,-500.0,0.00046575,120]
[354690879,1740621043135,-500.0,0.00046575,120]
[354690880,1740621043145,-500.0,0.00046575,120]
[354690881,1740621043154,-500.0,0.00046575,120]
[354690882,1740621043164,-500.0,0.00046575,120]
[354690883,1740621043173,-500.0,0.00046575,120]
[354690884,1740621043182,-500.0,0.00046575,120]
[354690885,1740621043192,-903.8,0.00046575,120]
[354690886,1740621043201,-502.32093943,0.00046575,120]
[354690887,1740621043211,-500.0,0.00046575,120]
[354690888,1740621043221,-534.98,0.00046575,120]
[354690889,1740621043230,-534.98,0.00046575,120]
[354690890,1740621043240,-534.98,0.00046575,120]
[354690891,1740621043249,-534.98,0.00046575,120]
[354690892,1740621043259,-534.98,0.00046575,120]
[354690893,1740621043268,-534.98,0.00046575,120]
[354690895,1740621043278,-534.98,0.00046575,120]
[354690897,1740621043287,-534.98,0.00046575,120]
[354690899,1740621043296,-534.98,0.00046575,120]
[354690901,1740621043305,-534.98,0.00046575,120]
[354690903,1740621043314,-534.98,0.00046575,120]
[354690905,1740621043324,-534.98,0.00046575,120]
[354690907,1740621043333,-534.98,0.00046575,120]
[354690909,1740621043342,-534.98,0.00046575,120]
[354690910,1740621043351,-500.35236404,0.00046575,120]
[354690911,1740621043360,-534.98,0.00046575,120]
[354690912,1740621043369,-534.98,0.00046575,120]
[354690913,1740621043379,-534.98,0.00046575,120]
[354690914,1740621043388,-534.98,0.00046575,120]
[354690915,1740621043397,-501.15281684,0.00046575,120]
[354690916,1740621043406,-534.98,0.00046575,120]
[354690917,1740621043416,-534.98,0.00046575,120]
[354690918,1740621043427,-534.98,0.00046575,120]
[354690919,1740621043437,-534.98,0.00046575,120]
[354690920,1740621043446,-500.0,0.00046575,120]
[354690921,1740621043456,-534.98,0.00046575,120]
[354690922,1740621043466,-501.00952768,0.00046575,120]
[354690923,1740621043475,-535.01566924,0.00046575,120]
[354690924,1740621043486,-151.0,0.00046575,120]
[354690925,1740621043497,-151.0,0.00046575,120]
[354690926,1740621043507,-151.0,0.00046575,120]
[354690927,1740621043517,-504.15775219,0.00046575,120]
[354690928,1740621043526,-505.57841991,0.00046575,120]
[354690929,1740621043536,-538.28,0.00046575,120]
[354690930,1740621043545,-500.0,0.00046575,120]
[354690931,1740621043554,-573.34231032,0.00046575,120]
[354690932,1740621043564,-500.0,0.00046575,120]
[354690933,1740621043573,-2515.58,0.00046575,120]
[354690934,1740621043582,-500.0,0.00046575,120]
[354690935,1740621043592,-500.0,0.00046575,120]
[354690936,1740621043601,-500.0,0.00046575,120]
[354690937,1740621043610,-500.0,0.00046575,120]
[354690938,1740621043620,-986.14,0.00046575,120]
[354690939,1740621043629,-501.71474422,0.00046575,120]
[354690940,1740621043639,-500.0,0.00046575,120]
[354690941,1740621043649,-500.0,0.00046575,120]
[354690942,1740621043659,-246.33319491,0.00046575,120]
[354690943,1740621043668,-631.88673495,0.00046575,120]
[354690944,1740621043677,-500.0,0.00046575,120]
[354690945,1740621043687,-500.0,0.00046575,120]
[354690946,1740621043696,-501.32558008,0.00046575,120]
[354690947,1740621043705,-500.83586327,0.00046575,120]
[354690948,1740621043715,-500.0,0.00046575,120]
[354690949,1740621043725,-500.0,0.00046575,120]
[354690950,1740621043734,-503.04032223,0.00046575,120]
[354690952,1740621043743,-500.0,0.00046575,15]
[354690954,1740621043752,-500.0,0.00046575,120]
[354690956,1740621043761,-500.0,0.00046575,120]
[354690958,1740621043770,-261.12074956,0.00046575,120]
[354690960,1740621043780,-708.48,0.00046575,120]
[354690962,1740621043789,-500.0,0.00046575,120]
[354690964,1740621043798,-1224.41,0.00046575,120]
[354690966,1740621043809,-502.05920124,0.00046575,120]
[354690968,1740621043818,-500.0,0.00046575,120]
[354690970,1740621043827,-501.83269426,0.00046575,120]
[354690972,1740621043837,-500.0,0.00046575,120]
[354690974,1740621043846,-500.0,0.00046575,120]
[354690976,1740621043855,-500.0,0.00046575,120]
[354690978,1740621043865,-500.0,0.00046575,120]
[354690980,1740621043874,-600.97,0.00046575,120]
[354690982,1740621043885,-504.7217453,0.00046575,120]
[354690984,1740621043895,-860.9,0.00046575,120]
[354690986,1740621043904,-502.02357294,0.00046575,120]
[354690988,1740621043913,-440.98248376,0.00046575,120]
[354690990,1740621043922,-500.0,0.00046575,120]
[354690992,1740621043931,-500.0,0.00046575,120]
[354690994,1740621043940,-351.93513317,0.00046575,120]
[354690996,1740621043949,-779.54,0.00046575,120]
[354690998,1740621043959,-500.9314802,0.00046575,120]
[354690999,1740621043968,-501.84623363,0.00046575,120]
[354691001,1740621043979,-500.0,0.00046575,120]
[354691003,1740621043988,-500.0,0.00046575,120]
[354691005,1740621043997,-500.0,0.00046575,120]
[354691007,1740621044006,-773.830023,0.00046575,120]
[354691008,1740621044015,-500.0,0.00046575,120]
[354691010,1740621044024,-773.830023,0.00046575,120]
[354691012,1740621044033,-773.830023,0.00046575,120]
[354691014,1740621044042,-500.0,0.00046575,120]
[354691015,1740621044053,-773.830023,0.00046575,120]
[354691017,1740621044062,-510.38688964,0.00046575,120]
[354691019,1740621044072,-773.830023,0.00046575,120]
[354691020,1740621044082,-858.42,0.00046575,120]
[354691021,1740621044092,-773.830023,0.00046575,120]
[354691022,1740621044102,-500.0,0.00046575,120]
[354691023,1740621044112,-1330.14,0.00046575,120]
[354691024,1740621044122,-226.0266,0.00046575,30]
[354691025,1740621044132,-226.0266,0.00046575,30]
[354691026,1740621044143,-226.0266,0.00046575,30]
[354691027,1740621044153,-226.0266,0.00046575,30]
[354691028,1740621044165,-501.17947356,0.00046575,120]
[354691029,1740621044174,-505.26663166,0.00046575,120]
[354691030,1740621044183,-226.0266,0.00046575,30]
[354691031,1740621044193,-226.0266,0.00046575,30]
[354691032,1740621044203,-2758.7,0.00046575,120]
[354691033,1740621044215,-226.0266,0.00046575,30]
[354691034,1740621044225,-502.26171854,0.00046575,120]